[Event "Titled Tuesday Blitz August 15 Early 2023"]
[White "Plotnikov, Pavel"]
[Black "Pakleza, Zbigniew"]
[WhiteFideId "4170342"]
[BlackFideId "1119290"]
[WhiteElo "2527"]
[BlackElo "2808"]
[Result "0-1"]
[Round "4"]
[TimeControl "180+1"]
[Date "2023.08.15"]
[WhiteClock "0:00:02"]
[BlackClock "0:00:05"]
[Board "107"]

1. d4 {[%clk 0:03:00]}  d6 {[%clk 0:02:59]} 2. Nf3 {[%clk 0:02:58]}  Bg4 {[%clk 0:02:59]} 3. e4 {[%clk 0:02:27]}  Nf6 {[%clk 0:02:58]} 4. Nc3 {[%clk 0:02:22]}  e6 {[%clk 0:02:58]} 5. h3 {[%clk 0:02:20]}  Bh5 {[%clk 0:02:58]} 6. Be3 {[%clk 0:02:07]}  Be7 {[%clk 0:02:57]} 7. Be2 {[%clk 0:02:04]}  d5 {[%clk 0:02:58]} 8. e5 {[%clk 0:02:00]}  Nfd7 {[%clk 0:02:58]} 9. g4 {[%clk 0:02:00]}  Bg6 {[%clk 0:02:58]} 10. Qd2 {[%clk 0:02:00]}  c5 {[%clk 0:02:57]} 11. dxc5 {[%clk 0:01:50]}  Nc6 {[%clk 0:02:56]} 12. h4 {[%clk 0:01:49]}  h5 {[%clk 0:02:56]} 13. g5 {[%clk 0:01:44]}  Nxc5 {[%clk 0:02:52]} 14. O-O-O {[%clk 0:01:30]}  Ne4 {[%clk 0:02:51]} 15. Nxe4 {[%clk 0:01:28]}  Bxe4 {[%clk 0:02:52]} 16. Rhg1 {[%clk 0:01:26]}  g6 {[%clk 0:02:47]} 17. Nd4 {[%clk 0:01:23]}  Nxd4 {[%clk 0:02:29]} 18. Bxd4 {[%clk 0:01:19]}  O-O {[%clk 0:02:23]} 19. Bd3 {[%clk 0:00:56]}  Bxd3 {[%clk 0:02:20]} 20. Qxd3 {[%clk 0:00:57]}  Qa5 {[%clk 0:02:17]} 21. Kb1 {[%clk 0:00:56]}  Rfc8 {[%clk 0:02:17]} 22. f4 {[%clk 0:00:54]}  Rc4 {[%clk 0:02:13]} 23. c3 {[%clk 0:00:53]}  Rac8 {[%clk 0:02:08]} 24. Rdf1 {[%clk 0:00:51]}  b5 {[%clk 0:01:53]} 25. f5 {[%clk 0:00:37]}  exf5 {[%clk 0:01:54]} 26. Rxf5 {[%clk 0:00:36]}  Rxd4 {[%clk 0:00:44]} 27. cxd4 {[%clk 0:00:22]}  gxf5 {[%clk 0:00:44]} 28. g6 {[%clk 0:00:23]}  fxg6 {[%clk 0:00:03]} 29. a3 {[%clk 0:00:23]}  Kh7 {[%clk 0:00:04]} 30. Qf3 {[%clk 0:00:16]}  Qd8 {[%clk 0:00:03]} 31. Qg3 {[%clk 0:00:15]}  Qe8 {[%clk 0:00:03]} 32. e6 {[%clk 0:00:12]}  Bf6 {[%clk 0:00:02]} 33. Re1 {[%clk 0:00:12]}  Qe7 {[%clk 0:00:02]} 34. Qf3 {[%clk 0:00:11]}  Rd8 {[%clk 0:00:02]} 35. Qb3 {[%clk 0:00:10]}  a6 {[%clk 0:00:02]} 36. a4 {[%clk 0:00:09]}  Bxd4 {[%clk 0:00:02]} 37. axb5 {[%clk 0:00:09]}  axb5 {[%clk 0:00:03]} 38. Qxb5 {[%clk 0:00:09]}  Bf6 {[%clk 0:00:03]} 39. Rc1 {[%clk 0:00:07]}  Kh6 {[%clk 0:00:03]} 40. Rc6 {[%clk 0:00:06]}  d4 {[%clk 0:00:02]} 41. Qd3 {[%clk 0:00:06]}  f4 {[%clk 0:00:02]} 42. Qe4 {[%clk 0:00:06]}  Bxh4 {[%clk 0:00:03]} 43. Qxf4+ {[%clk 0:00:06]}  Bg5 {[%clk 0:00:04]} 44. Qe4 {[%clk 0:00:06]}  d3 {[%clk 0:00:04]} 45. Qe1 {[%clk 0:00:06]}  d2 {[%clk 0:00:04]} 46. Qd1 {[%clk 0:00:07]}  Rd6 {[%clk 0:00:04]} 47. Rc2 {[%clk 0:00:05]}  Rxe6 {[%clk 0:00:04]} 48. Rxd2 {[%clk 0:00:02]}  Re1 {[%clk 0:00:05]} 0-1


[Site "https://www.chess.com"]

[Event "Titled Tuesday Blitz August 15 Early 2023"]
[White "Djordjevic, Vuk"]
[Black "Hristodoulou, Panagiotis"]
[WhiteFideId "902098"]
[BlackFideId "4214340"]
[WhiteElo "2692"]
[BlackElo "2514"]
[Result "1-0"]
[Round "4"]
[TimeControl "180+1"]
[Date "2023.08.15"]
[WhiteClock "0:02:36"]
[BlackClock "0:02:21"]
[Board "109"]

1. d4 {[%clk 0:03:00]}  Nf6 {[%clk 0:02:56]} 2. Bg5 {[%clk 0:03:00]}  e6 {[%clk 0:02:56]} 3. e4 {[%clk 0:03:00]}  h6 {[%clk 0:02:55]} 4. Bxf6 {[%clk 0:03:00]}  Qxf6 {[%clk 0:02:56]} 5. c3 {[%clk 0:03:01]}  d6 {[%clk 0:02:56]} 6. Bd3 {[%clk 0:03:01]}  Nd7 {[%clk 0:02:56]} 7. Ne2 {[%clk 0:03:01]}  g5 {[%clk 0:02:48]} 8. O-O {[%clk 0:03:01]}  Bg7 {[%clk 0:02:46]} 9. f4 {[%clk 0:03:01]}  gxf4 {[%clk 0:02:46]} 10. Nxf4 {[%clk 0:03:01]}  Qe7 {[%clk 0:02:44]} 11. Nd2 {[%clk 0:02:52]}  b6 {[%clk 0:02:43]} 12. Nh5 {[%clk 0:02:49]}  Bf8 {[%clk 0:02:41]} 13. e5 {[%clk 0:02:41]}  d5 {[%clk 0:02:39]} 14. Bb5 {[%clk 0:02:40]}  Kd8 {[%clk 0:02:21]} 15. Qf3 {[%clk 0:02:36]} 1-0


[Site "https://www.chess.com"]

[Event "Titled Tuesday Blitz August 15 Early 2023"]
[White "Shishkov, Andrei"]
[Black "Veiga, Jose Francisco R P Neves"]
[WhiteFideId "4500563"]
[BlackFideId "1930087"]
[WhiteElo "2503"]
[BlackElo "2685"]
[Result "1-0"]
[Round "4"]
[TimeControl "180+1"]
[Date "2023.08.15"]
[WhiteClock "0:01:13"]
[BlackClock "0:01:16"]
[Board "111"]

1. d4 {[%clk 0:03:00]}  Nf6 {[%clk 0:02:54]} 2. c4 {[%clk 0:03:00]}  e6 {[%clk 0:02:54]} 3. Nc3 {[%clk 0:03:00]}  Bb4 {[%clk 0:02:55]} 4. Qc2 {[%clk 0:03:01]}  d5 {[%clk 0:02:55]} 5. cxd5 {[%clk 0:03:00]}  exd5 {[%clk 0:02:56]} 6. Bf4 {[%clk 0:02:58]}  O-O {[%clk 0:02:55]} 7. e3 {[%clk 0:02:59]}  c6 {[%clk 0:02:55]} 8. Bd3 {[%clk 0:02:58]}  Bd6 {[%clk 0:02:46]} 9. Bxd6 {[%clk 0:02:48]}  Qxd6 {[%clk 0:02:47]} 10. Nf3 {[%clk 0:02:48]}  Bg4 {[%clk 0:02:47]} 11. Ne5 {[%clk 0:02:47]}  Bh5 {[%clk 0:02:45]} 12. f4 {[%clk 0:02:25]}  Nbd7 {[%clk 0:02:44]} 13. O-O {[%clk 0:02:25]}  Bg6 {[%clk 0:01:38]} 14. Nxd7 {[%clk 0:01:56]}  Nxd7 {[%clk 0:01:37]} 15. f5 {[%clk 0:01:56]}  Bh5 {[%clk 0:01:35]} 16. h3 {[%clk 0:01:47]}  f6 {[%clk 0:01:33]} 17. Qf2 {[%clk 0:01:35]}  Rae8 {[%clk 0:01:29]} 18. Rae1 {[%clk 0:01:34]}  Re7 {[%clk 0:01:26]} 19. e4 {[%clk 0:01:26]}  dxe4 {[%clk 0:01:24]} 20. Nxe4 {[%clk 0:01:27]}  Qc7 {[%clk 0:01:21]} 21. Ng3 {[%clk 0:01:14]}  Bf7 {[%clk 0:01:16]} 22. Rxe7 {[%clk 0:01:13]} 1-0


[Site "https://www.chess.com"]

[Event "Titled Tuesday Blitz August 15 Early 2023"]
[White "Mindhunter08"]
[Black "Haug, Havard"]
[BlackFideId "1547887"]
[WhiteElo "2471"]
[BlackElo "2664"]
[Result "0-1"]
[Round "4"]
[TimeControl "180+1"]
[Date "2023.08.15"]
[WhiteClock "0:00:00"]
[BlackClock "0:00:05"]
[Board "113"]

1. e4 {[%clk 0:03:00]}  c6 {[%clk 0:02:59]} 2. Nf3 {[%clk 0:02:59]}  d5 {[%clk 0:03:00]} 3. Nc3 {[%clk 0:02:59]}  dxe4 {[%clk 0:03:00]} 4. Nxe4 {[%clk 0:03:00]}  Nf6 {[%clk 0:03:01]} 5. Qe2 {[%clk 0:03:01]}  Na6 {[%clk 0:02:59]} 6. d4 {[%clk 0:02:58]}  Qd5 {[%clk 0:02:56]} 7. Nxf6+ {[%clk 0:02:57]}  gxf6 {[%clk 0:02:57]} 8. c3 {[%clk 0:02:46]}  Bg4 {[%clk 0:02:55]} 9. Bf4 {[%clk 0:02:39]}  O-O-O {[%clk 0:02:42]} 10. h3 {[%clk 0:02:17]}  Bxf3 {[%clk 0:02:39]} 11. gxf3 {[%clk 0:02:17]}  e5 {[%clk 0:02:34]} 12. dxe5 {[%clk 0:02:13]}  fxe5 {[%clk 0:02:27]} 13. Bg3 {[%clk 0:02:08]}  Bg7 {[%clk 0:02:16]} 14. Bg2 {[%clk 0:02:02]}  Nc5 {[%clk 0:02:13]} 15. Kf1 {[%clk 0:01:57]}  Qd2 {[%clk 0:01:56]} 16. h4 {[%clk 0:01:35]}  Rhe8 {[%clk 0:01:39]} 17. Bh3+ {[%clk 0:01:30]}  Kb8 {[%clk 0:01:39]} 18. Re1 {[%clk 0:01:28]}  Na4 {[%clk 0:01:29]} 19. f4 {[%clk 0:01:06]}  f6 {[%clk 0:00:55]} 20. fxe5 {[%clk 0:01:04]}  fxe5 {[%clk 0:00:55]} 21. Qg4 {[%clk 0:01:03]}  Bh8 {[%clk 0:00:51]} 22. Qxa4 {[%clk 0:01:01]}  Qxb2 {[%clk 0:00:41]} 23. Qc4 {[%clk 0:00:45]}  Rf8 {[%clk 0:00:36]} 24. Kg2 {[%clk 0:00:42]}  Rd2 {[%clk 0:00:35]} 25. Rhf1 {[%clk 0:00:37]}  a6 {[%clk 0:00:35]} 26. Qc5 {[%clk 0:00:33]}  Rg8 {[%clk 0:00:34]} 27. Kh2 {[%clk 0:00:22]}  Qxa2 {[%clk 0:00:30]} 28. Bxe5+ {[%clk 0:00:20]}  Bxe5+ {[%clk 0:00:30]} 29. Qxe5+ {[%clk 0:00:21]}  Ka8 {[%clk 0:00:30]} 30. Qe3 {[%clk 0:00:18]}  Qd5 {[%clk 0:00:20]} 31. Rg1 {[%clk 0:00:14]}  Rf8 {[%clk 0:00:17]} 32. Rg2 {[%clk 0:00:12]}  Qd6+ {[%clk 0:00:17]} 33. Kh1 {[%clk 0:00:11]}  Rd3 {[%clk 0:00:18]} 34. Qe6 {[%clk 0:00:08]}  Qf4 {[%clk 0:00:17]} 35. Bg4 {[%clk 0:00:03]}  Rxc3 {[%clk 0:00:15]} 36. Qe7 {[%clk 0:00:03]}  Rg8 {[%clk 0:00:12]} 37. Re4 {[%clk 0:00:02]}  Rc1+ {[%clk 0:00:11]} 38. Re1 {[%clk 0:00:02]}  Rxe1+ {[%clk 0:00:09]} 39. Qxe1 {[%clk 0:00:02]}  Rxg4 {[%clk 0:00:09]} 40. Qe8+ {[%clk 0:00:02]}  Ka7 {[%clk 0:00:09]} 41. Rxg4 {[%clk 0:00:02]}  Qxg4 {[%clk 0:00:09]} 42. Qe3+ {[%clk 0:00:03]}  Kb8 {[%clk 0:00:09]} 43. Qe8+ {[%clk 0:00:03]}  Kc7 {[%clk 0:00:10]} 44. Qe5+ {[%clk 0:00:04]}  Kb6 {[%clk 0:00:09]} 45. Qb2+ {[%clk 0:00:04]}  Ka7 {[%clk 0:00:07]} 46. Qf6 {[%clk 0:00:02]}  Qc4 {[%clk 0:00:06]} 47. h5 {[%clk 0:00:02]}  Qd5+ {[%clk 0:00:06]} 48. Kg1 {[%clk 0:00:01]}  a5 {[%clk 0:00:05]} 49. Qd4+ {[%clk 0:00:00]}  Qxd4 {[%clk 0:00:05]} 0-1


[Site "https://www.chess.com"]

[Event "Titled Tuesday Blitz August 15 Early 2023"]
[White "Goltsev, Dmitry"]
[Black "Dong Khanh Linh"]
[WhiteFideId "24176710"]
[BlackFideId "12403040"]
[WhiteElo "2635"]
[BlackElo "2464"]
[Result "1-0"]
[Round "4"]
[TimeControl "180+1"]
[Date "2023.08.15"]
[WhiteClock "0:01:08"]
[BlackClock "0:00:07"]
[Board "114"]

1. e4 {[%clk 0:02:50]}  e6 {[%clk 0:03:00]} 2. d4 {[%clk 0:02:50]}  d5 {[%clk 0:02:59]} 3. exd5 {[%clk 0:02:50]}  exd5 {[%clk 0:02:59]} 4. Nf3 {[%clk 0:02:51]}  Bg4 {[%clk 0:02:56]} 5. c4 {[%clk 0:02:51]}  Nf6 {[%clk 0:02:55]} 6. Nc3 {[%clk 0:02:51]}  Nbd7 {[%clk 0:02:53]} 7. Bd3 {[%clk 0:02:51]}  dxc4 {[%clk 0:02:52]} 8. Bxc4 {[%clk 0:02:51]}  Qe7+ {[%clk 0:02:26]} 9. Be3 {[%clk 0:02:49]}  Nb6 {[%clk 0:02:23]} 10. Bb3 {[%clk 0:02:48]}  O-O-O {[%clk 0:02:20]} 11. O-O {[%clk 0:02:47]}  Qd7 {[%clk 0:02:14]} 12. Rc1 {[%clk 0:02:47]}  Bd6 {[%clk 0:02:12]} 13. a4 {[%clk 0:02:43]}  Kb8 {[%clk 0:02:08]} 14. Nb5 {[%clk 0:02:40]}  Qf5 {[%clk 0:01:48]} 15. h3 {[%clk 0:02:20]}  Bxf3 {[%clk 0:01:46]} 16. Qxf3 {[%clk 0:02:21]}  Qxf3 {[%clk 0:01:46]} 17. gxf3 {[%clk 0:02:22]}  Nfd5 {[%clk 0:01:43]} 18. a5 {[%clk 0:02:21]}  Nxe3 {[%clk 0:01:41]} 19. fxe3 {[%clk 0:02:07]}  Nc8 {[%clk 0:01:35]} 20. Bxf7 {[%clk 0:02:01]}  c6 {[%clk 0:01:23]} 21. Nc3 {[%clk 0:01:56]}  Rhf8 {[%clk 0:01:05]} 22. Be6 {[%clk 0:01:54]}  Ne7 {[%clk 0:00:58]} 23. Ne4 {[%clk 0:01:52]}  Bb4 {[%clk 0:00:50]} 24. a6 {[%clk 0:01:48]}  Nd5 {[%clk 0:00:48]} 25. Bxd5 {[%clk 0:01:44]}  cxd5 {[%clk 0:00:48]} 26. Nc3 {[%clk 0:01:34]}  bxa6 {[%clk 0:00:44]} 27. Kf2 {[%clk 0:01:31]}  Rfe8 {[%clk 0:00:42]} 28. Ke2 {[%clk 0:01:29]}  Kb7 {[%clk 0:00:21]} 29. Kd3 {[%clk 0:01:27]}  Re6 {[%clk 0:00:20]} 30. e4 {[%clk 0:01:27]}  dxe4+ {[%clk 0:00:18]} 31. fxe4 {[%clk 0:01:28]}  Rd7 {[%clk 0:00:17]} 32. Nd5 {[%clk 0:01:27]}  Bd6 {[%clk 0:00:15]} 33. Rc3 {[%clk 0:01:24]}  Rh6 {[%clk 0:00:15]} 34. Rf3 {[%clk 0:01:22]}  Rg6 {[%clk 0:00:14]} 35. Rb3+ {[%clk 0:01:18]}  Kc8 {[%clk 0:00:14]} 36. e5 {[%clk 0:01:15]}  Bxe5 {[%clk 0:00:13]} 37. Rf8+ {[%clk 0:01:14]}  Rd8 {[%clk 0:00:13]} 38. Ne7+ {[%clk 0:01:14]}  Kc7 {[%clk 0:00:11]} 39. Rc3+ {[%clk 0:01:08]}  Kd7 {[%clk 0:00:09]} 40. Rxd8+ {[%clk 0:01:08]}  Kxd8 {[%clk 0:00:07]} 41. Nxg6 {[%clk 0:01:08]} 1-0


[Site "https://www.chess.com"]

[Event "Titled Tuesday Blitz August 15 Early 2023"]
[White "Komov, Roman"]
[Black "MrAnnihilation"]
[WhiteFideId "24175714"]
[WhiteElo "2618"]
[BlackElo "2459"]
[Result "1-0"]
[Round "4"]
[TimeControl "180+1"]
[Date "2023.08.15"]
[WhiteClock "0:00:26"]
[BlackClock "0:00:06"]
[Board "115"]

1. e4 {[%clk 0:03:00]}  e5 {[%clk 0:02:58]} 2. Nf3 {[%clk 0:03:00]}  Nc6 {[%clk 0:02:58]} 3. Bc4 {[%clk 0:02:59]}  Nf6 {[%clk 0:02:57]} 4. d3 {[%clk 0:02:59]}  h6 {[%clk 0:02:56]} 5. O-O {[%clk 0:02:57]}  d6 {[%clk 0:02:57]} 6. Nc3 {[%clk 0:02:56]}  g5 {[%clk 0:02:57]} 7. a4 {[%clk 0:02:50]}  Bg7 {[%clk 0:02:57]} 8. a5 {[%clk 0:02:44]}  a6 {[%clk 0:02:56]} 9. Nd5 {[%clk 0:02:35]}  Bg4 {[%clk 0:02:47]} 10. Ne3 {[%clk 0:02:30]}  Be6 {[%clk 0:02:05]} 11. Nd2 {[%clk 0:02:24]}  Qd7 {[%clk 0:01:58]} 12. c3 {[%clk 0:02:17]}  O-O {[%clk 0:01:51]} 13. Qb3 {[%clk 0:02:10]}  Ne7 {[%clk 0:01:26]} 14. Qa4 {[%clk 0:01:46]}  c6 {[%clk 0:01:25]} 15. b4 {[%clk 0:01:42]}  Ng6 {[%clk 0:01:22]} 16. Qb3 {[%clk 0:01:33]}  Nf4 {[%clk 0:01:17]} 17. d4 {[%clk 0:01:31]}  exd4 {[%clk 0:01:07]} 18. cxd4 {[%clk 0:01:31]}  Ne2+ {[%clk 0:01:06]} 19. Kh1 {[%clk 0:01:29]}  Nxd4 {[%clk 0:01:06]} 20. Qd3 {[%clk 0:01:28]}  Nh5 {[%clk 0:01:01]} 21. Bb2 {[%clk 0:01:23]}  Nf4 {[%clk 0:01:00]} 22. Qb1 {[%clk 0:01:16]}  d5 {[%clk 0:00:49]} 23. exd5 {[%clk 0:01:15]}  cxd5 {[%clk 0:00:36]} 24. Ba2 {[%clk 0:01:05]}  Rac8 {[%clk 0:00:33]} 25. Rd1 {[%clk 0:01:01]}  Nde2 {[%clk 0:00:29]} 26. Bxg7 {[%clk 0:01:01]}  Kxg7 {[%clk 0:00:29]} 27. Qb2+ {[%clk 0:00:55]}  Kg8 {[%clk 0:00:24]} 28. Ne4 {[%clk 0:00:52]}  dxe4 {[%clk 0:00:17]} 29. Rxd7 {[%clk 0:00:52]}  Bxd7 {[%clk 0:00:17]} 30. g3 {[%clk 0:00:49]}  Nd3 {[%clk 0:00:07]} 31. Qxe2 {[%clk 0:00:48]}  Bb5 {[%clk 0:00:05]} 32. Qh5 {[%clk 0:00:38]}  Nxf2+ {[%clk 0:00:04]} 33. Kg2 {[%clk 0:00:38]}  Nd3 {[%clk 0:00:02]} 34. Qg6+ {[%clk 0:00:38]}  Kh8 {[%clk 0:00:02]} 35. Qxh6+ {[%clk 0:00:38]}  Kg8 {[%clk 0:00:03]} 36. Qxg5+ {[%clk 0:00:35]}  Kh7 {[%clk 0:00:03]} 37. Qf5+ {[%clk 0:00:32]}  Kg7 {[%clk 0:00:02]} 38. Bxf7 {[%clk 0:00:29]}  Rxf7 {[%clk 0:00:01]} 39. Qxc8 {[%clk 0:00:29]}  Rf2+ {[%clk 0:00:02]} 40. Kg1 {[%clk 0:00:29]}  Re2 {[%clk 0:00:02]} 41. Qg4+ {[%clk 0:00:30]}  Kf6 {[%clk 0:00:02]} 42. Qxe2 {[%clk 0:00:31]}  Ke5 {[%clk 0:00:02]} 43. Rf1 {[%clk 0:00:29]}  Kd4 {[%clk 0:00:03]} 44. Rf5 {[%clk 0:00:27]}  b6 {[%clk 0:00:03]} 45. Rxb5 {[%clk 0:00:26]}  axb5 {[%clk 0:00:03]} 46. axb6 {[%clk 0:00:27]}  Nxb4 {[%clk 0:00:04]} 47. b7 {[%clk 0:00:27]}  Nd3 {[%clk 0:00:04]} 48. b8=Q {[%clk 0:00:27]}  b4 {[%clk 0:00:05]} 49. Qd6+ {[%clk 0:00:26]}  Kc3 {[%clk 0:00:06]} 50. Qc2# {[%clk 0:00:26]} 1-0


[Site "https://www.chess.com"]

[Event "Titled Tuesday Blitz August 15 Early 2023"]
[White "NovoselovRoman"]
[Black "Toktomushev, Teimur"]
[BlackFideId "14176726"]
[WhiteElo "2596"]
[BlackElo "2426"]
[Result "0-1"]
[Round "4"]
[TimeControl "180+1"]
[Date "2023.08.15"]
[WhiteClock "0:00:23"]
[BlackClock "0:00:07"]
[Board "120"]

1. e4 {[%clk 0:02:57]}  c5 {[%clk 0:03:00]} 2. Nc3 {[%clk 0:02:58]}  e6 {[%clk 0:03:00]} 3. g3 {[%clk 0:02:58]}  d5 {[%clk 0:02:55]} 4. exd5 {[%clk 0:02:59]}  exd5 {[%clk 0:02:56]} 5. d4 {[%clk 0:02:59]}  cxd4 {[%clk 0:02:42]} 6. Qxd4 {[%clk 0:03:00]}  Nf6 {[%clk 0:02:41]} 7. Bg5 {[%clk 0:03:00]}  Be7 {[%clk 0:02:29]} 8. O-O-O {[%clk 0:02:59]}  Nc6 {[%clk 0:02:27]} 9. Bb5 {[%clk 0:02:48]}  O-O {[%clk 0:02:25]} 10. Qa4 {[%clk 0:02:45]}  Be6 {[%clk 0:01:44]} 11. Nge2 {[%clk 0:02:34]}  h6 {[%clk 0:01:44]} 12. Be3 {[%clk 0:02:05]}  Ne5 {[%clk 0:01:32]} 13. Nf4 {[%clk 0:01:53]}  a6 {[%clk 0:01:26]} 14. Be2 {[%clk 0:01:36]}  b5 {[%clk 0:01:19]} 15. Qd4 {[%clk 0:01:34]}  Nc6 {[%clk 0:00:33]} 16. Qd3 {[%clk 0:00:49]}  Rc8 {[%clk 0:00:13]} 17. Kb1 {[%clk 0:00:23]}  Nb4 {[%clk 0:00:07]} 18. Qd2 {[%clk 0:00:23]}  Qa5 {[%clk 0:00:06]} 19. a3 {[%clk 0:00:21]}  Nc6 {[%clk 0:00:03]} 20. Ncxd5 {[%clk 0:00:22]}  Nxd5 {[%clk 0:00:02]} 21. Qxa5 {[%clk 0:00:17]}  Nxa5 {[%clk 0:00:01]} 22. Nxd5 {[%clk 0:00:18]}  Bd8 {[%clk 0:00:02]} 23. Bf3 {[%clk 0:00:13]}  Bf5 {[%clk 0:00:02]} 24. Nc3 {[%clk 0:00:12]}  Nc4 {[%clk 0:00:01]} 25. Bd4 {[%clk 0:00:12]}  Bf6 {[%clk 0:00:02]} 26. Bxf6 {[%clk 0:00:11]}  gxf6 {[%clk 0:00:03]} 27. Be4 {[%clk 0:00:12]}  Be6 {[%clk 0:00:02]} 28. Bd5 {[%clk 0:00:12]}  Nxa3+ {[%clk 0:00:01]} 29. bxa3 {[%clk 0:00:12]}  Rxc3 {[%clk 0:00:02]} 30. Kb2 {[%clk 0:00:12]}  Rc7 {[%clk 0:00:02]} 31. Be4 {[%clk 0:00:12]}  Rfc8 {[%clk 0:00:02]} 32. Rhe1 {[%clk 0:00:13]}  Kg7 {[%clk 0:00:02]} 33. Bd3 {[%clk 0:00:13]}  f5 {[%clk 0:00:03]} 34. Re5 {[%clk 0:00:13]}  Kf6 {[%clk 0:00:03]} 35. Rde1 {[%clk 0:00:14]}  Rc5 {[%clk 0:00:01]} 36. f4 {[%clk 0:00:14]}  Rxe5 {[%clk 0:00:02]} 37. Rxe5 {[%clk 0:00:15]}  Rc7 {[%clk 0:00:01]} 38. a4 {[%clk 0:00:15]}  bxa4 {[%clk 0:00:01]} 39. Bxa6 {[%clk 0:00:16]}  a3+ {[%clk 0:00:01]} 40. Kxa3 {[%clk 0:00:12]}  Rxc2 {[%clk 0:00:01]} 41. Re2 {[%clk 0:00:13]}  Rxe2 {[%clk 0:00:02]} 42. Bxe2 {[%clk 0:00:14]}  Kg6 {[%clk 0:00:02]} 43. Kb4 {[%clk 0:00:13]}  Bd5 {[%clk 0:00:02]} 44. Kc5 {[%clk 0:00:14]}  Be4 {[%clk 0:00:02]} 45. Kd6 {[%clk 0:00:14]}  Kf6 {[%clk 0:00:03]} 46. Bc4 {[%clk 0:00:14]}  Bc2 {[%clk 0:00:02]} 47. Kd7 {[%clk 0:00:14]}  Ba4+ {[%clk 0:00:02]} 48. Kd8 {[%clk 0:00:14]}  Bc6 {[%clk 0:00:02]} 49. Bb3 {[%clk 0:00:14]}  Bb5 {[%clk 0:00:02]} 50. Bc2 {[%clk 0:00:14]}  Bc6 {[%clk 0:00:02]} 51. Kc7 {[%clk 0:00:14]}  Be4 {[%clk 0:00:02]} 52. Kd6 {[%clk 0:00:15]}  Bxc2 {[%clk 0:00:02]} 53. Kd5 {[%clk 0:00:15]}  Bd1 {[%clk 0:00:02]} 54. Kd4 {[%clk 0:00:16]}  Bg4 {[%clk 0:00:03]} 55. Kd5 {[%clk 0:00:16]}  Bf3+ {[%clk 0:00:03]} 56. Kd6 {[%clk 0:00:17]}  Be4 {[%clk 0:00:03]} 57. Kd7 {[%clk 0:00:17]}  Bd5 {[%clk 0:00:03]} 58. Kd6 {[%clk 0:00:18]}  Be6 {[%clk 0:00:03]} 59. Kc5 {[%clk 0:00:18]}  Ke7 {[%clk 0:00:04]} 60. Kc6 {[%clk 0:00:18]}  Kd8 {[%clk 0:00:02]} 61. Kd6 {[%clk 0:00:19]}  Bc8 {[%clk 0:00:03]} 62. Ke5 {[%clk 0:00:19]}  Ke7 {[%clk 0:00:03]} 63. Kd5 {[%clk 0:00:20]}  Bb7+ {[%clk 0:00:03]} 64. Ke5 {[%clk 0:00:20]}  Be4 {[%clk 0:00:02]} 65. Kd4 {[%clk 0:00:19]}  Kd6 {[%clk 0:00:02]} 66. g4 {[%clk 0:00:18]}  fxg4 {[%clk 0:00:02]} 67. Kxe4 {[%clk 0:00:19]}  Ke6 {[%clk 0:00:02]} 68. f5+ {[%clk 0:00:19]}  Kf6 {[%clk 0:00:03]} 69. Kf4 {[%clk 0:00:19]}  h5 {[%clk 0:00:03]} 70. Ke4 {[%clk 0:00:19]}  Kg5 {[%clk 0:00:04]} 71. Ke5 {[%clk 0:00:20]}  h4 {[%clk 0:00:03]} 72. Ke4 {[%clk 0:00:19]}  f6 {[%clk 0:00:03]} 73. h3 {[%clk 0:00:15]}  gxh3 {[%clk 0:00:02]} 74. Kf3 {[%clk 0:00:16]}  Kxf5 {[%clk 0:00:03]} 75. Kf2 {[%clk 0:00:17]}  Kg4 {[%clk 0:00:03]} 76. Kg1 {[%clk 0:00:17]}  f5 {[%clk 0:00:04]} 77. Kf2 {[%clk 0:00:17]}  f4 {[%clk 0:00:05]} 78. Kg1 {[%clk 0:00:18]}  Kg3 {[%clk 0:00:05]} 79. Kh1 {[%clk 0:00:18]}  f3 {[%clk 0:00:05]} 80. Kg1 {[%clk 0:00:19]}  f2+ {[%clk 0:00:06]} 81. Kf1 {[%clk 0:00:19]}  h2 {[%clk 0:00:06]} 82. Ke2 {[%clk 0:00:20]}  h1=Q {[%clk 0:00:06]} 83. Ke3 {[%clk 0:00:21]}  Qf3+ {[%clk 0:00:05]} 84. Kd4 {[%clk 0:00:21]}  f1=Q {[%clk 0:00:05]} 85. Ke5 {[%clk 0:00:22]}  Q1d3 {[%clk 0:00:05]} 86. Ke6 {[%clk 0:00:23]}  Qff5+ {[%clk 0:00:06]} 87. Ke7 {[%clk 0:00:23]}  Qdd7# {[%clk 0:00:07]} 0-1


[Site "https://www.chess.com"]

[Event "Titled Tuesday Blitz August 15 Early 2023"]
[White "Przybylski, Wojciech"]
[Black "Shohat, Yotam"]
[WhiteFideId "1117599"]
[BlackFideId "2813955"]
[WhiteElo "2567"]
[BlackElo "2426"]
[Result "1-0"]
[Round "4"]
[TimeControl "180+1"]
[Date "2023.08.15"]
[WhiteClock "0:00:26"]
[BlackClock "0:00:00"]
[Board "121"]

1. d4 {[%clk 0:03:00]}  Nf6 {[%clk 0:02:59]} 2. c4 {[%clk 0:03:00]}  e6 {[%clk 0:02:57]} 3. g3 {[%clk 0:03:00]}  d5 {[%clk 0:02:54]} 4. Bg2 {[%clk 0:03:00]}  Bb4+ {[%clk 0:02:52]} 5. Nd2 {[%clk 0:02:59]}  O-O {[%clk 0:02:49]} 6. Nf3 {[%clk 0:02:59]}  a5 {[%clk 0:02:28]} 7. O-O {[%clk 0:02:58]}  c6 {[%clk 0:02:12]} 8. Qc2 {[%clk 0:02:52]}  Nbd7 {[%clk 0:02:04]} 9. e4 {[%clk 0:02:47]}  dxe4 {[%clk 0:02:03]} 10. Nxe4 {[%clk 0:02:46]}  Nxe4 {[%clk 0:02:02]} 11. Qxe4 {[%clk 0:02:46]}  Nf6 {[%clk 0:02:02]} 12. Qc2 {[%clk 0:02:44]}  a4 {[%clk 0:01:50]} 13. Be3 {[%clk 0:02:40]}  a3 {[%clk 0:01:49]} 14. b3 {[%clk 0:02:40]}  Qa5 {[%clk 0:01:40]} 15. Ne5 {[%clk 0:02:25]}  Be7 {[%clk 0:01:23]} 16. Rad1 {[%clk 0:02:19]}  Nd7 {[%clk 0:01:14]} 17. Nd3 {[%clk 0:02:12]}  Qf5 {[%clk 0:01:06]} 18. Rfe1 {[%clk 0:02:04]}  e5 {[%clk 0:00:43]} 19. d5 {[%clk 0:02:00]}  cxd5 {[%clk 0:00:40]} 20. cxd5 {[%clk 0:02:00]}  Bd6 {[%clk 0:00:37]} 21. Qc4 {[%clk 0:01:52]}  Nf6 {[%clk 0:00:36]} 22. Nc5 {[%clk 0:01:39]}  Qg4 {[%clk 0:00:32]} 23. Qb5 {[%clk 0:01:32]}  Qh5 {[%clk 0:00:24]} 24. f3 {[%clk 0:01:18]}  Rb8 {[%clk 0:00:12]} 25. Qb6 {[%clk 0:01:04]}  Ne8 {[%clk 0:00:06]} 26. Ne4 {[%clk 0:01:03]}  Qg6 {[%clk 0:00:04]} 27. Qa7 {[%clk 0:00:55]}  Bf5 {[%clk 0:00:02]} 28. Nxd6 {[%clk 0:00:51]}  Nxd6 {[%clk 0:00:03]} 29. Qxa3 {[%clk 0:00:49]}  Ra8 {[%clk 0:00:03]} 30. Qb2 {[%clk 0:00:48]}  Rfd8 {[%clk 0:00:03]} 31. Bb6 {[%clk 0:00:39]}  Re8 {[%clk 0:00:03]} 32. Rxe5 {[%clk 0:00:29]}  Rxe5 {[%clk 0:00:02]} 33. Qxe5 {[%clk 0:00:29]}  Rxa2 {[%clk 0:00:03]} 34. Bc5 {[%clk 0:00:29]}  Ra6 {[%clk 0:00:02]} 35. Re1 {[%clk 0:00:27]}  Bd7 {[%clk 0:00:00]} 36. Qe7 {[%clk 0:00:26]} 1-0


[Site "https://www.chess.com"]